[Event "Titled Tuesday Blitz October 18 Late 2022"]
[White "Bluebaum, Matthias"]
[Black "Sargsyan, Anna M."]
[WhiteFideId "24651516"]
[BlackFideId "13308130"]
[WhiteElo "2633"]
[BlackElo "2284"]
[Result "1-0"]
[Round "02"]
[TimeControl "180+1"]
[Date "2022.10.18"]
[WhiteClock "0:01:58"]
[BlackClock "0:00:11"]

1. d4 {[%clk 0:03:00]}  d5 {[%clk 0:02:58]} 2. c4 {[%clk 0:03:01]}  c6 {[%clk 0:02:58]} 3. Nc3 {[%clk 0:03:01]}  Nf6 {[%clk 0:02:59]} 4. Nf3 {[%clk 0:03:02]}  dxc4 {[%clk 0:02:59]} 5. e4 {[%clk 0:03:02]}  b5 {[%clk 0:02:55]} 6. Qc2 {[%clk 0:03:03]}  e6 {[%clk 0:02:55]} 7. Be2 {[%clk 0:03:03]}  Be7 {[%clk 0:02:55]} 8. O-O {[%clk 0:03:04]}  O-O {[%clk 0:02:56]} 9. e5 {[%clk 0:03:04]}  Nd5 {[%clk 0:02:55]} 10. Ne4 {[%clk 0:03:05]}  h6 {[%clk 0:02:52]} 11. b3 {[%clk 0:03:05]}  cxb3 {[%clk 0:02:50]} 12. axb3 {[%clk 0:03:06]}  Bb7 {[%clk 0:02:47]} 13. Bd2 {[%clk 0:03:06]}  a5 {[%clk 0:02:45]} 14. Qc1 {[%clk 0:03:06]}  f5 {[%clk 0:02:23]} 15. exf6 {[%clk 0:03:05]}  Nxf6 {[%clk 0:02:23]} 16. Nc5 {[%clk 0:03:04]}  Bc8 {[%clk 0:02:20]} 17. Ne5 {[%clk 0:03:02]}  Qxd4 {[%clk 0:02:14]} 18. Ncd3 {[%clk 0:02:47]}  Nd5 {[%clk 0:01:17]} 19. Ng6 {[%clk 0:02:31]}  Rf7 {[%clk 0:01:00]} 20. Nde5 {[%clk 0:02:25]}  Rf5 {[%clk 0:01:00]} 21. Be3 {[%clk 0:02:16]}  Qb4 {[%clk 0:00:45]} 22. Nxc6 {[%clk 0:02:02]}  Nxc6 {[%clk 0:00:45]} 23. Qxc6 {[%clk 0:02:03]}  Rb8 {[%clk 0:00:35]} 24. Ba7 {[%clk 0:01:58]}  Bb7 {[%clk 0:00:11]} 25. Qxe6+ {[%clk 0:01:58]} 1-0


[Site "https://www.chess.com"]

[Event "Titled Tuesday Blitz October 18 Late 2022"]
[White "Bortnyk, Olexandr"]
[Black "Zverev, Lev"]
[WhiteFideId "14120828"]
[BlackFideId "24250775"]
[WhiteElo "2723"]
[BlackElo "2207"]
[Result "1-0"]
[Round "02"]
[TimeControl "180+1"]
[Date "2022.10.18"]
[WhiteClock "0:01:15"]
[BlackClock "0:00:43"]

1. d4 {[%clk 0:03:00]}  d5 {[%clk 0:02:58]} 2. Nc3 {[%clk 0:03:01]}  Nf6 {[%clk 0:02:55]} 3. Bf4 {[%clk 0:02:55]}  a6 {[%clk 0:02:54]} 4. e3 {[%clk 0:02:54]}  e6 {[%clk 0:02:52]} 5. Nf3 {[%clk 0:02:54]}  Bd6 {[%clk 0:02:52]} 6. Ne5 {[%clk 0:02:54]}  O-O {[%clk 0:02:50]} 7. Bd3 {[%clk 0:02:53]}  c5 {[%clk 0:02:49]} 8. Qf3 {[%clk 0:02:53]}  Nc6 {[%clk 0:02:45]} 9. Qh3 {[%clk 0:02:32]}  cxd4 {[%clk 0:02:12]} 10. exd4 {[%clk 0:02:29]}  Nxd4 {[%clk 0:02:06]} 11. Ng4 {[%clk 0:02:28]}  Nf5 {[%clk 0:02:01]} 12. Nxf6+ {[%clk 0:02:23]}  gxf6 {[%clk 0:01:53]} 13. Bxf5 {[%clk 0:02:24]}  exf5 {[%clk 0:01:52]} 14. Qg3+ {[%clk 0:02:23]}  Kh8 {[%clk 0:01:52]} 15. Bxd6 {[%clk 0:02:24]}  Re8+ {[%clk 0:01:51]} 16. Kf1 {[%clk 0:02:13]}  Rg8 {[%clk 0:01:47]} 17. Bc7 {[%clk 0:02:09]}  Qf8 {[%clk 0:01:41]} 18. Qd6 {[%clk 0:02:08]}  Qg7 {[%clk 0:01:32]} 19. g3 {[%clk 0:02:06]}  Be6 {[%clk 0:01:32]} 20. Qf4 {[%clk 0:02:00]}  Rac8 {[%clk 0:01:30]} 21. Rd1 {[%clk 0:02:00]}  Qg6 {[%clk 0:01:20]} 22. f3 {[%clk 0:01:55]}  Qh5 {[%clk 0:01:18]} 23. Kf2 {[%clk 0:01:55]}  Qh3 {[%clk 0:01:04]} 24. Nxd5 {[%clk 0:01:52]}  Bxd5 {[%clk 0:01:05]} 25. Rxd5 {[%clk 0:01:52]}  Rge8 {[%clk 0:01:05]} 26. Rd2 {[%clk 0:01:37]}  Re6 {[%clk 0:01:02]} 27. Ba5 {[%clk 0:01:33]}  Rce8 {[%clk 0:00:58]} 28. Bc3 {[%clk 0:01:31]}  Kg8 {[%clk 0:00:52]} 29. Qh4 {[%clk 0:01:21]}  Re2+ {[%clk 0:00:52]} 30. Rxe2 {[%clk 0:01:21]}  Rxe2+ {[%clk 0:00:53]} 31. Kxe2 {[%clk 0:01:22]}  Qg2+ {[%clk 0:00:54]} 32. Ke3 {[%clk 0:01:23]}  Qxh1 {[%clk 0:00:54]} 33. Qxf6 {[%clk 0:01:24]}  Qc1+ {[%clk 0:00:54]} 34. Kd4 {[%clk 0:01:22]}  Qd1+ {[%clk 0:00:42]} 35. Kc5 {[%clk 0:01:17]}  Kf8 {[%clk 0:00:43]} 36. Qd6+ {[%clk 0:01:15]} 1-0


[Site "https://www.chess.com"]

[Event "Titled Tuesday Blitz October 18 Late 2022"]
[White "Brown, Andrew"]
[Black "Aggelis, Nikolaos"]
[WhiteFideId "3206513"]
[BlackFideId "4213220"]
[WhiteElo "2245"]
[BlackElo "2187"]
[Result "0-1"]
[Round "02"]
[TimeControl "180+1"]
[Date "2022.10.19"]
[WhiteClock "0:00:10"]
[BlackClock "0:00:32"]

1. d4 {[%clk 0:03:00]}  c5 {[%clk 0:02:58]} 2. dxc5 {[%clk 0:03:00]}  e5 {[%clk 0:02:57]} 3. e4 {[%clk 0:02:59]}  Bxc5 {[%clk 0:02:57]} 4. Nf3 {[%clk 0:03:00]}  Nc6 {[%clk 0:02:57]} 5. Bc4 {[%clk 0:02:59]}  Nf6 {[%clk 0:02:52]} 6. O-O {[%clk 0:02:55]}  h6 {[%clk 0:02:49]} 7. Nc3 {[%clk 0:02:52]}  O-O {[%clk 0:02:48]} 8. a3 {[%clk 0:02:51]}  a5 {[%clk 0:02:46]} 9. h3 {[%clk 0:02:42]}  d6 {[%clk 0:02:46]} 10. Qd3 {[%clk 0:02:27]}  Be6 {[%clk 0:02:41]} 11. Rd1 {[%clk 0:02:21]}  Qe7 {[%clk 0:02:37]} 12. Nd5 {[%clk 0:01:55]}  Bxd5 {[%clk 0:02:33]} 13. Bxd5 {[%clk 0:01:56]}  Nxd5 {[%clk 0:02:31]} 14. Qxd5 {[%clk 0:01:56]}  Rad8 {[%clk 0:02:22]} 15. Be3 {[%clk 0:01:54]}  Bxe3 {[%clk 0:02:21]} 16. fxe3 {[%clk 0:01:55]}  Qf6 {[%clk 0:02:19]} 17. Rd3 {[%clk 0:01:54]}  Rd7 {[%clk 0:02:07]} 18. Rad1 {[%clk 0:01:54]}  Rc8 {[%clk 0:02:03]} 19. c4 {[%clk 0:01:54]}  b6 {[%clk 0:01:53]} 20. Qb5 {[%clk 0:01:52]}  Qd8 {[%clk 0:01:47]} 21. b4 {[%clk 0:01:40]}  axb4 {[%clk 0:01:44]} 22. axb4 {[%clk 0:01:41]}  Qc7 {[%clk 0:01:41]} 23. c5 {[%clk 0:01:37]}  bxc5 {[%clk 0:01:41]} 24. bxc5 {[%clk 0:01:37]}  Rb8 {[%clk 0:01:41]} 25. Qa4 {[%clk 0:01:20]}  Rbd8 {[%clk 0:01:42]} 26. cxd6 {[%clk 0:00:55]}  Rxd6 {[%clk 0:01:42]} 27. Rd5 {[%clk 0:00:52]}  Rxd5 {[%clk 0:01:27]} 28. exd5 {[%clk 0:00:50]}  Ne7 {[%clk 0:01:26]} 29. e4 {[%clk 0:00:38]}  Nc8 {[%clk 0:01:26]} 30. Qa1 {[%clk 0:00:33]}  f6 {[%clk 0:01:21]} 31. Rc1 {[%clk 0:00:33]}  Qb6+ {[%clk 0:01:19]} 32. Kh2 {[%clk 0:00:33]}  Nd6 {[%clk 0:01:19]} 33. Rc6 {[%clk 0:00:31]}  Qf2 {[%clk 0:01:12]} 34. Qa5 {[%clk 0:00:31]}  Rb8 {[%clk 0:01:05]} 35. Rxd6 {[%clk 0:00:25]}  Rb2 {[%clk 0:01:02]} 36. Ne1 {[%clk 0:00:25]}  Qf4+ {[%clk 0:00:55]} 37. Kg1 {[%clk 0:00:25]}  Qe3+ {[%clk 0:00:54]} 38. Kh1 {[%clk 0:00:16]}  Rb1 {[%clk 0:00:44]} 39. Rd8+ {[%clk 0:00:16]}  Kh7 {[%clk 0:00:41]} 40. d6 {[%clk 0:00:10]}  Rxe1+ {[%clk 0:00:35]} 41. Kh2 {[%clk 0:00:10]}  Qf4+ {[%clk 0:00:32]} 0-1


[Site "https://www.chess.com"]

[Event "Titled Tuesday Blitz October 18 Late 2022"]
[White "Diaz Rosas, Julio Cesar"]
[Black "Koziorowicz, Michal"]
[WhiteFideId "5105099"]
[BlackFideId "21809194"]
[WhiteElo "2525"]
[BlackElo "2772"]
[Result "0-1"]
[Round "02"]
[TimeControl "180+1"]
[Date "2022.10.19"]
[WhiteClock "0:00:36"]
[BlackClock "0:00:33"]

1. e4 {[%clk 0:03:00]}  c5 {[%clk 0:02:59]} 2. Nf3 {[%clk 0:03:00]}  d6 {[%clk 0:02:59]} 3. d4 {[%clk 0:03:00]}  cxd4 {[%clk 0:03:00]} 4. Nxd4 {[%clk 0:03:01]}  Nf6 {[%clk 0:03:00]} 5. Nc3 {[%clk 0:03:02]}  g6 {[%clk 0:03:01]} 6. Be3 {[%clk 0:03:00]}  Bg7 {[%clk 0:03:02]} 7. f3 {[%clk 0:03:00]}  O-O {[%clk 0:03:02]} 8. Qd2 {[%clk 0:03:01]}  Nc6 {[%clk 0:03:03]} 9. O-O-O {[%clk 0:03:01]}  d5 {[%clk 0:03:04]} 10. Nxc6 {[%clk 0:03:01]}  bxc6 {[%clk 0:03:04]} 11. Bh6 {[%clk 0:03:02]}  Rb8 {[%clk 0:03:04]} 12. e5 {[%clk 0:02:53]}  Bxh6 {[%clk 0:02:59]} 13. Qxh6 {[%clk 0:02:52]}  Nd7 {[%clk 0:03:00]} 14. h4 {[%clk 0:02:52]}  Nxe5 {[%clk 0:02:51]} 15. h5 {[%clk 0:02:48]}  Bf5 {[%clk 0:02:50]} 16. g4 {[%clk 0:02:45]}  f6 {[%clk 0:02:51]} 17. Qe3 {[%clk 0:02:41]}  Be6 {[%clk 0:02:29]} 18. hxg6 {[%clk 0:02:39]}  hxg6 {[%clk 0:02:29]} 19. f4 {[%clk 0:02:26]}  Qb6 {[%clk 0:02:04]} 20. Qxb6 {[%clk 0:02:22]}  axb6 {[%clk 0:02:05]} 21. fxe5 {[%clk 0:02:22]}  fxe5 {[%clk 0:02:06]} 22. Re1 {[%clk 0:02:16]}  e4 {[%clk 0:02:05]} 23. Rg1 {[%clk 0:02:16]}  Rf2 {[%clk 0:02:01]} 24. Nd1 {[%clk 0:02:14]}  Rf4 {[%clk 0:02:01]} 25. Be2 {[%clk 0:02:11]}  d4 {[%clk 0:01:59]} 26. b3 {[%clk 0:02:09]}  Bd5 {[%clk 0:01:55]} 27. Bc4 {[%clk 0:02:08]}  b5 {[%clk 0:01:47]} 28. Bxd5+ {[%clk 0:02:04]}  cxd5 {[%clk 0:01:48]} 29. Rg2 {[%clk 0:02:04]}  e5 {[%clk 0:01:44]} 30. g5 {[%clk 0:02:00]}  Kf7 {[%clk 0:01:19]} 31. Nf2 {[%clk 0:01:58]}  Ke6 {[%clk 0:01:18]} 32. Rh1 {[%clk 0:01:47]}  Rbf8 {[%clk 0:01:16]} 33. Nd1 {[%clk 0:01:43]}  e3 {[%clk 0:01:11]} 34. a4 {[%clk 0:01:42]}  Rf1 {[%clk 0:01:11]} 35. Rxf1 {[%clk 0:01:41]}  Rxf1 {[%clk 0:01:12]} 36. a5 {[%clk 0:01:40]}  e4 {[%clk 0:01:06]} 37. Re2 {[%clk 0:01:32]}  b4 {[%clk 0:00:59]} 38. a6 {[%clk 0:01:31]}  Rf7 {[%clk 0:00:58]} 39. c3 {[%clk 0:01:24]}  bxc3 {[%clk 0:00:58]} 40. b4 {[%clk 0:01:24]}  Kd6 {[%clk 0:00:54]} 41. Nxe3 {[%clk 0:01:11]}  dxe3 {[%clk 0:00:53]} 42. Rxe3 {[%clk 0:01:12]}  d4 {[%clk 0:00:50]} 43. Rxe4 {[%clk 0:01:12]}  Kd5 {[%clk 0:00:51]} 44. Re8 {[%clk 0:01:09]}  d3 {[%clk 0:00:51]} 45. Kb1 {[%clk 0:01:07]}  Rf1+ {[%clk 0:00:49]} 46. Ka2 {[%clk 0:01:07]}  c2 {[%clk 0:00:49]} 47. a7 {[%clk 0:00:52]}  Ra1+ {[%clk 0:00:48]} 48. Kxa1 {[%clk 0:00:53]}  c1=Q+ {[%clk 0:00:49]} 49. Ka2 {[%clk 0:00:53]}  Qc4+ {[%clk 0:00:39]} 50. Kb2 {[%clk 0:00:37]}  Qxb4+ {[%clk 0:00:36]} 51. Kc1 {[%clk 0:00:37]}  Qc3+ {[%clk 0:00:32]} 52. Kb1 {[%clk 0:00:36]}  Qc2+ {[%clk 0:00:32]} 53. Ka1 {[%clk 0:00:36]}  Qa4+ {[%clk 0:00:33]} 0-1


[Site "https://www.chess.com"]

[Event "Titled Tuesday Blitz October 18 Late 2022"]
[White "Droin, Augustin"]
[Black "miragha_yev"]
[WhiteFideId "45105987"]
[WhiteElo "2516"]
[BlackElo "2754"]
[Result "0-1"]
[Round "02"]
[TimeControl "180+1"]
[Date "2022.10.19"]
[WhiteClock "0:00:44"]
[BlackClock "0:00:34"]

1. e4 {[%clk 0:02:59]}  g6 {[%clk 0:03:00]} 2. d4 {[%clk 0:02:59]}  Nf6 {[%clk 0:02:56]} 3. e5 {[%clk 0:02:59]}  Nh5 {[%clk 0:02:56]} 4. Nf3 {[%clk 0:02:56]}  d6 {[%clk 0:02:57]} 5. h3 {[%clk 0:02:57]}  Nc6 {[%clk 0:02:54]} 6. exd6 {[%clk 0:02:54]}  cxd6 {[%clk 0:02:53]} 7. c3 {[%clk 0:02:55]}  Bg7 {[%clk 0:02:54]} 8. Be2 {[%clk 0:02:55]}  O-O {[%clk 0:02:54]} 9. O-O {[%clk 0:02:55]}  e5 {[%clk 0:02:54]} 10. dxe5 {[%clk 0:02:52]}  dxe5 {[%clk 0:02:55]} 11. Nbd2 {[%clk 0:02:51]}  Nf4 {[%clk 0:02:51]} 12. Bc4 {[%clk 0:02:48]}  Bxh3 {[%clk 0:02:10]} 13. gxh3 {[%clk 0:02:40]}  Nxh3+ {[%clk 0:02:11]} 14. Kh2 {[%clk 0:02:39]}  Nf4 {[%clk 0:02:06]} 15. Ne4 {[%clk 0:02:39]}  Qc8 {[%clk 0:02:01]} 16. Bxf4 {[%clk 0:02:38]}  exf4 {[%clk 0:02:01]} 17. Nfg5 {[%clk 0:02:38]}  Ne5 {[%clk 0:02:00]} 18. Bxf7+ {[%clk 0:02:19]}  Nxf7 {[%clk 0:01:54]} 19. Nxf7 {[%clk 0:02:19]}  Rxf7 {[%clk 0:01:55]} 20. Nd6 {[%clk 0:02:19]}  Qc5 {[%clk 0:01:55]} 21. Nxf7 {[%clk 0:02:18]}  Kxf7 {[%clk 0:01:49]} 22. Qf3 {[%clk 0:02:18]}  Qc7 {[%clk 0:01:45]} 23. Rad1 {[%clk 0:02:16]}  Re8 {[%clk 0:01:42]} 24. Rfe1 {[%clk 0:02:16]}  Rxe1 {[%clk 0:01:37]} 25. Rxe1 {[%clk 0:02:17]}  Be5 {[%clk 0:01:38]} 26. Qd5+ {[%clk 0:02:17]}  Kf6 {[%clk 0:01:37]} 27. f3 {[%clk 0:02:17]}  Qe7 {[%clk 0:01:31]} 28. c4 {[%clk 0:02:10]}  b6 {[%clk 0:01:28]} 29. b4 {[%clk 0:02:09]}  Qd6 {[%clk 0:01:26]} 30. Qe4 {[%clk 0:02:00]}  Bc3 {[%clk 0:01:24]} 31. c5 {[%clk 0:01:52]}  bxc5 {[%clk 0:01:24]} 32. bxc5 {[%clk 0:01:52]}  Qxc5 {[%clk 0:01:21]} 33. Qxf4+ {[%clk 0:01:51]}  Kg7 {[%clk 0:01:20]} 34. Re2 {[%clk 0:01:45]}  h5 {[%clk 0:01:18]} 35. Kg2 {[%clk 0:01:40]}  Bf6 {[%clk 0:01:16]} 36. Rd2 {[%clk 0:01:35]}  Qe7 {[%clk 0:01:14]} 37. Qa4 {[%clk 0:01:34]}  Qe5 {[%clk 0:01:12]} 38. Qxa7+ {[%clk 0:01:33]}  Kh6 {[%clk 0:01:10]} 39. Qf2 {[%clk 0:01:27]}  Qg5+ {[%clk 0:01:08]} 40. Kf1 {[%clk 0:01:27]}  Qf5 {[%clk 0:01:08]} 41. Re2 {[%clk 0:01:26]}  h4 {[%clk 0:01:03]} 42. f4 {[%clk 0:01:25]}  Qd5 {[%clk 0:01:00]} 43. Qh2 {[%clk 0:01:17]}  Qf3+ {[%clk 0:00:59]} 44. Ke1 {[%clk 0:01:15]}  h3 {[%clk 0:00:56]} 45. Kd2 {[%clk 0:01:13]}  Bc3+ {[%clk 0:00:54]} 46. Kc2 {[%clk 0:01:12]}  Bd4 {[%clk 0:00:54]} 47. f5 {[%clk 0:01:10]}  Qxf5+ {[%clk 0:00:54]} 48. Kd2 {[%clk 0:01:09]}  Qf3 {[%clk 0:00:51]} 49. Qd6 {[%clk 0:01:05]}  Bc3+ {[%clk 0:00:48]} 50. Kc2 {[%clk 0:00:55]}  Qxe2+ {[%clk 0:00:46]} 51. Kxc3 {[%clk 0:00:56]}  h2 {[%clk 0:00:46]} 52. Qf8+ {[%clk 0:00:54]}  Kh5 {[%clk 0:00:46]} 53. Qh8+ {[%clk 0:00:53]}  Kg4 {[%clk 0:00:45]} 54. Qd4+ {[%clk 0:00:53]}  Kf3 {[%clk 0:00:44]} 55. Qd5+ {[%clk 0:00:54]}  Qe4 {[%clk 0:00:43]} 56. Qd1+ {[%clk 0:00:53]}  Kg3 {[%clk 0:00:42]} 57. Qd6+ {[%clk 0:00:49]}  Kh3 {[%clk 0:00:37]} 58. Qd7+ {[%clk 0:00:47]}  Qg4 {[%clk 0:00:38]} 59. Qh7+ {[%clk 0:00:46]}  Kg2 {[%clk 0:00:35]} 60. Qd7 {[%clk 0:00:44]}  Qxd7 {[%clk 0:00:34]} 0-1


[Site "https://www.chess.com"]

[Event "Titled Tuesday Blitz October 18 Late 2022"]
[White "Ekdyshman, Mikhail"]
[Black "Sibilio, Mario"]
[WhiteFideId "4149416"]
[BlackFideId "800422"]
[WhiteElo "2164"]
[BlackElo "2296"]
[Result "1-0"]
[Round "02"]
[TimeControl "180+1"]
[Date "2022.10.19"]
[WhiteClock "0:00:06"]
[BlackClock "0:00:01"]

1. c4 {[%clk 0:02:58]}  Nf6 {[%clk 0:02:58]} 2. g3 {[%clk 0:02:58]}  e6 {[%clk 0:02:50]} 3. Bg2 {[%clk 0:02:58]}  d5 {[%clk 0:02:50]} 4. d4 {[%clk 0:02:57]}  c5 {[%clk 0:02:49]} 5. cxd5 {[%clk 0:02:56]}  exd5 {[%clk 0:02:40]} 6. Nf3 {[%clk 0:02:55]}  Nc6 {[%clk 0:02:39]} 7. O-O {[%clk 0:02:55]}  h6 {[%clk 0:02:36]} 8. Nc3 {[%clk 0:02:52]}  Bg4 {[%clk 0:02:26]} 9. Ne5 {[%clk 0:02:26]}  cxd4 {[%clk 0:02:22]} 10. Nxc6 {[%clk 0:02:15]}  bxc6 {[%clk 0:02:21]} 11. Qxd4 {[%clk 0:02:15]}  Be7 {[%clk 0:02:06]} 12. e4 {[%clk 0:02:10]}  dxe4 {[%clk 0:01:58]} 13. Qxd8+ {[%clk 0:02:02]}  Rxd8 {[%clk 0:01:56]} 14. Nxe4 {[%clk 0:02:03]}  Nd5 {[%clk 0:01:50]} 15. Bd2 {[%clk 0:01:43]}  O-O {[%clk 0:01:47]} 16. Ba5 {[%clk 0:01:42]}  Rb8 {[%clk 0:01:38]} 17. b3 {[%clk 0:01:42]}  f5 {[%clk 0:01:25]} 18. Nc3 {[%clk 0:01:34]}  Nb4 {[%clk 0:01:17]} 19. Rac1 {[%clk 0:01:25]}  f4 {[%clk 0:01:10]} 20. Bxb4 {[%clk 0:01:19]}  Bxb4 {[%clk 0:01:06]} 21. Bxc6 {[%clk 0:01:19]}  fxg3 {[%clk 0:00:57]} 22. hxg3 {[%clk 0:01:15]}  Bh3 {[%clk 0:00:49]} 23. Bg2 {[%clk 0:01:01]}  Bf5 {[%clk 0:00:43]} 24. Nd5 {[%clk 0:01:00]}  Ba3 {[%clk 0:00:42]} 25. Rc7 {[%clk 0:01:00]}  a5 {[%clk 0:00:37]} 26. Ne7+ {[%clk 0:00:56]}  Bxe7 {[%clk 0:00:36]} 27. Rxe7 {[%clk 0:00:57]}  a4 {[%clk 0:00:34]} 28. bxa4 {[%clk 0:00:57]}  Rb2 {[%clk 0:00:32]} 29. Rd1 {[%clk 0:00:48]}  Bg4 {[%clk 0:00:28]} 30. Rf1 {[%clk 0:00:32]}  Be2 {[%clk 0:00:27]} 31. Re1 {[%clk 0:00:23]}  Bc4 {[%clk 0:00:25]} 32. f4 {[%clk 0:00:12]}  Rxa2 {[%clk 0:00:24]} 33. Rc7 {[%clk 0:00:12]}  Bf7 {[%clk 0:00:21]} 34. Ree7 {[%clk 0:00:12]}  Ra1+ {[%clk 0:00:16]} 35. Kh2 {[%clk 0:00:12]}  Ra2 {[%clk 0:00:15]} 36. Kh3 {[%clk 0:00:09]}  g5 {[%clk 0:00:12]} 37. Rxf7 {[%clk 0:00:09]}  Rxf7 {[%clk 0:00:11]} 38. Bd5 {[%clk 0:00:08]}  Ra3 {[%clk 0:00:09]} 39. Rxf7 {[%clk 0:00:07]}  gxf4 {[%clk 0:00:07]} 40. Rxf4+ {[%clk 0:00:07]}  Kg7 {[%clk 0:00:08]} 41. Kg4 {[%clk 0:00:07]}  Kg6 {[%clk 0:00:07]} 42. Be4+ {[%clk 0:00:07]}  Kg7 {[%clk 0:00:06]} 43. Bf5 {[%clk 0:00:07]}  Ra1 {[%clk 0:00:03]} 44. Bd7 {[%clk 0:00:06]}  Rd1 {[%clk 0:00:01]} 45. Bb5 {[%clk 0:00:06]} 1-0


[Site "https://www.chess.com"]

[Event "Titled Tuesday Blitz October 18 Late 2022"]
[White "Eljanov, Pavel"]
[Black "Sivakumar, Shaaketh"]
[WhiteFideId "14102951"]
[BlackFideId "30940176"]
[WhiteElo "2601"]
[BlackElo "2174"]
[Result "1-0"]
[Round "02"]
[TimeControl "180+1"]
[Date "2022.10.18"]
[WhiteClock "0:00:28"]
[BlackClock "0:00:16"]

1. c4 {[%clk 0:03:00]}  e6 {[%clk 0:03:00]} 2. g3 {[%clk 0:03:00]}  Nf6 {[%clk 0:02:57]} 3. Bg2 {[%clk 0:03:00]}  g6 {[%clk 0:02:57]} 4. Nf3 {[%clk 0:02:59]}  Bg7 {[%clk 0:02:56]} 5. O-O {[%clk 0:03:00]}  O-O {[%clk 0:02:57]} 6. b3 {[%clk 0:02:58]}  b6 {[%clk 0:02:57]} 7. Bb2 {[%clk 0:02:58]}  Bb7 {[%clk 0:02:57]} 8. d3 {[%clk 0:02:49]}  d6 {[%clk 0:02:54]} 9. Nbd2 {[%clk 0:02:47]}  Nbd7 {[%clk 0:02:54]} 10. b4 {[%clk 0:02:43]}  c5 {[%clk 0:02:53]} 11. a3 {[%clk 0:02:39]}  Qe7 {[%clk 0:02:51]} 12. e4 {[%clk 0:02:30]}  Rfd8 {[%clk 0:02:50]} 13. Qc2 {[%clk 0:02:30]}  Rac8 {[%clk 0:02:50]} 14. Rfe1 {[%clk 0:02:26]}  Ng4 {[%clk 0:02:37]} 15. Bxg7 {[%clk 0:02:22]}  Kxg7 {[%clk 0:02:38]} 16. h3 {[%clk 0:02:06]}  Nge5 {[%clk 0:02:33]} 17. Nh2 {[%clk 0:02:06]}  Nc6 {[%clk 0:02:32]} 18. Nb3 {[%clk 0:02:04]}  Qf6 {[%clk 0:02:26]} 19. b5 {[%clk 0:01:59]}  Nd4 {[%clk 0:02:23]} 20. Nxd4 {[%clk 0:01:57]}  cxd4 {[%clk 0:02:23]} 21. e5 {[%clk 0:01:52]}  Nxe5 {[%clk 0:02:17]} 22. Bxb7 {[%clk 0:01:53]}  Rc7 {[%clk 0:02:18]} 23. Bg2 {[%clk 0:01:53]}  d5 {[%clk 0:02:16]} 24. Ng4 {[%clk 0:01:46]}  Nxg4 {[%clk 0:02:14]} 25. hxg4 {[%clk 0:01:47]}  Rdc8 {[%clk 0:02:05]} 26. Bf1 {[%clk 0:01:32]}  Qg5 {[%clk 0:01:44]} 27. Qd1 {[%clk 0:01:27]}  dxc4 {[%clk 0:01:36]} 28. dxc4 {[%clk 0:01:27]}  e5 {[%clk 0:01:36]} 29. f4 {[%clk 0:01:26]}  exf4 {[%clk 0:01:28]} 30. Qxd4+ {[%clk 0:01:25]}  Kg8 {[%clk 0:01:28]} 31. Qxf4 {[%clk 0:01:25]}  Qc5+ {[%clk 0:01:29]} 32. Qf2 {[%clk 0:01:23]}  Qg5 {[%clk 0:01:28]} 33. Re4 {[%clk 0:01:20]}  Rd7 {[%clk 0:01:12]} 34. Rae1 {[%clk 0:01:20]}  Kg7 {[%clk 0:01:10]} 35. Rd4 {[%clk 0:01:15]}  Rdc7 {[%clk 0:01:06]} 36. Rd5 {[%clk 0:01:14]}  Qxg4 {[%clk 0:01:04]} 37. Qd4+ {[%clk 0:01:14]}  Qxd4+ {[%clk 0:01:02]} 38. Rxd4 {[%clk 0:01:15]}  h5 {[%clk 0:00:59]} 39. a4 {[%clk 0:01:11]}  Kf6 {[%clk 0:00:59]} 40. Kf2 {[%clk 0:01:09]}  Rc5 {[%clk 0:00:58]} 41. Re3 {[%clk 0:01:09]}  R8c7 {[%clk 0:00:58]} 42. Ree4 {[%clk 0:01:08]}  Kg5 {[%clk 0:00:57]} 43. Bg2 {[%clk 0:01:07]}  Rf5+ {[%clk 0:00:55]} 44. Rf4 {[%clk 0:01:07]}  Re5 {[%clk 0:00:53]} 45. Bd5 {[%clk 0:01:06]}  f5 {[%clk 0:00:53]} 46. Rd2 {[%clk 0:01:00]}  Rce7 {[%clk 0:00:52]} 47. Kg2 {[%clk 0:01:00]}  Re3 {[%clk 0:00:50]} 48. Rf3 {[%clk 0:01:00]}  Re1 {[%clk 0:00:50]} 49. Rf1 {[%clk 0:00:56]}  R1e3 {[%clk 0:00:49]} 50. Rfd1 {[%clk 0:00:51]}  h4 {[%clk 0:00:49]} 51. gxh4+ {[%clk 0:00:50]}  Kxh4 {[%clk 0:00:50]} 52. Rd4+ {[%clk 0:00:46]}  Kg5 {[%clk 0:00:49]} 53. R1d2 {[%clk 0:00:46]}  Ra3 {[%clk 0:00:45]} 54. c5 {[%clk 0:00:44]}  bxc5 {[%clk 0:00:44]} 55. Rc4 {[%clk 0:00:45]}  Ree3 {[%clk 0:00:39]} 56. Kf2 {[%clk 0:00:45]}  f4 {[%clk 0:00:37]} 57. Bc6 {[%clk 0:00:41]}  Rad3 {[%clk 0:00:17]} 58. Rxc5+ {[%clk 0:00:40]}  Kg4 {[%clk 0:00:17]} 59. Bd7+ {[%clk 0:00:40]}  Kh4 {[%clk 0:00:17]} 60. Rxd3 {[%clk 0:00:39]}  Rxd3 {[%clk 0:00:18]} 61. Rc7 {[%clk 0:00:32]}  g5 {[%clk 0:00:18]} 62. Bc8 {[%clk 0:00:32]}  Rd2+ {[%clk 0:00:17]} 63. Kf3 {[%clk 0:00:29]}  Rd3+ {[%clk 0:00:17]} 64. Ke2 {[%clk 0:00:27]}  Ra3 {[%clk 0:00:16]} 65. Rh7+ {[%clk 0:00:27]}  Kg3 {[%clk 0:00:17]} 66. Rh3+ {[%clk 0:00:27]}  Kg2 {[%clk 0:00:16]} 67. Rxa3 {[%clk 0:00:28]} 1-0


[Site "https://www.chess.com"]